Department Family,Entity,Date,Expense Type,Expense Area,Supplier,Transaction Number,Amount
DOH,London Ambulance Service NHS Trust,06/01/2016,Elective Bets Nurses,Neonatal Transfer Service,Barts & The London Nhs Trust,2229,30000
DOH,London Ambulance Service NHS Trust,06/01/2016,Course And Conference Fees,International Paramedics,South East Coast Ambulance Nhs Ft,2250,37500
DOH,London Ambulance Service NHS Trust,06/01/2016,Vehicle Recovery,Fleet Support Services,The Mansfield Group,236937,52146
DOH,London Ambulance Service NHS Trust,06/01/2016,Tyres,Fleet Support Services,Ats Euromaster Ltd,237255,53464.51
DOH,London Ambulance Service NHS Trust,06/01/2016,Computer Software Maintenance,Systems,Software Enterprises (Uk) Ltd,239165,52800
DOH,London Ambulance Service NHS Trust,06/01/2016,Private Ambulance Hire,Director Of Ops,X9 Services,239428,47195.16
DOH,London Ambulance Service NHS Trust,06/01/2016,Contract Labour,Vehicle Resouce Centre,Lightbridge Support Services,240562,66150.35
DOH,London Ambulance Service NHS Trust,06/01/2016,Private Ambulance Hire,Director Of Ops,St John Ambulance Londonprince,241506,31269.67
DOH,London Ambulance Service NHS Trust,06/01/2016,Private Ambulance Hire,Director Of Ops,St John Ambulance Londonprince,241507,35874.44
DOH,London Ambulance Service NHS Trust,06/01/2016,Private Ambulance Hire,Director Of Ops,X9 Services,241934,43424.08
DOH,London Ambulance Service NHS Trust,06/01/2016,Private Ambulance Hire,Director Of Ops,St John Ambulance Londonprince,241994,38426.7
DOH,London Ambulance Service NHS Trust,06/01/2016,Private Ambulance Hire,Director Of Ops,St John Ambulance Londonprince,241995,32891.77
DOH,London Ambulance Service NHS Trust,20/01/2016,Private Ambulance Hire,Director Of Ops,St John Ambulance Londonprince,241996,34005.37
DOH,London Ambulance Service NHS Trust,06/01/2016,Private Ambulance Hire,Director Of Ops,Medical Services Ltd,242241,77218.88
DOH,London Ambulance Service NHS Trust,06/01/2016,Private Ambulance Hire,Director Of Ops,Medical Services Ltd,242242,77972.69
DOH,London Ambulance Service NHS Trust,13/01/2016,Private Ambulance Hire,Director Of Ops,Medical Services Ltd,242243,70506.46
DOH,London Ambulance Service NHS Trust,06/01/2016,Course And Conference Fees,National Paramedics,F.T.S. Solutions Ltd,242251,35148
DOH,London Ambulance Service NHS Trust,06/01/2016,Private Ambulance Hire,Director Of Ops,St John Ambulance Londonprince,242314,32082.54
DOH,London Ambulance Service NHS Trust,06/01/2016,Vehicles,Capital,Stryker Uk Ltd,242316,41762.88
DOH,London Ambulance Service NHS Trust,25/01/2016,Technical Support - Contract,Capita Contract,Capita Secure Information Solutions Ltd,242596,57183.1
DOH,London Ambulance Service NHS Trust,06/01/2016,Consultancy Fees,Tx - Pmo - Pmo,Pa Consulting Services Ltd,242604,169848
DOH,London Ambulance Service NHS Trust,06/01/2016,Agency Nurses,111 Operations,Hays Specialist Recruitment Ltd,242675,31409.18
DOH,London Ambulance Service NHS Trust,06/01/2016,Private Ambulance Hire,Director Of Ops,St John Ambulance Londonprince,242736,27506.26
DOH,London Ambulance Service NHS Trust,06/01/2016,Vehicles,Capital,Stryker Uk Ltd,242738,41762.88
DOH,London Ambulance Service NHS Trust,06/01/2016,Vehicles,Capital,Stryker Uk Ltd,242739,41762.88
DOH,London Ambulance Service NHS Trust,06/01/2016,Private Ambulance Hire,Director Of Ops,Srcl Ltd,242763,33492.96
DOH,London Ambulance Service NHS Trust,06/01/2016,Private Ambulance Hire,Director Of Ops,Srcl Ltd,242764,25217.61
DOH,London Ambulance Service NHS Trust,06/01/2016,Private Ambulance Hire,Director Of Ops,Srcl Ltd,242765,36572.59
DOH,London Ambulance Service NHS Trust,20/01/2016,Professional Fees,Director Of Finance,Pa Consulting Services Ltd,242767,39168
DOH,London Ambulance Service NHS Trust,06/01/2016,Acd Maintenance,Networks,Echo Communication Ltd,242797,59998.8
DOH,London Ambulance Service NHS Trust,06/01/2016,Rent,Islington Ambulance,Savills (Uk) Ltd,243416,42000
DOH,London Ambulance Service NHS Trust,06/01/2016,Defibrillator Leases,Fru Procurement,De Lage Landen Leasing Ltd,243617,34959.6
DOH,London Ambulance Service NHS Trust,13/01/2016,Private Ambulance Hire,Director Of Ops,X9 Services,243798,50466.03
DOH,London Ambulance Service NHS Trust,25/01/2016,Vehicle Recovery,Fleet Support Services,The Mansfield Group,243913,61987.34
DOH,London Ambulance Service NHS Trust,06/01/2016,Vehicles,Capital,Stryker Uk Ltd,244022,41762.88
DOH,London Ambulance Service NHS Trust,13/01/2016,Electricity,Estate Management,British Gas,244821,39316.86
DOH,London Ambulance Service NHS Trust,13/01/2016,Rent,Pocock Street,Tlg Llc,244822,52638.59
DOH,London Ambulance Service NHS Trust,25/01/2016,Contract Labour,Corporate Logistics,Interserve Hospital Services,245046,252490.53
DOH,London Ambulance Service NHS Trust,25/01/2016,Contract Labour,Vehicle Resouce Centre,Lightbridge Support Services,245069,66150.35
DOH,London Ambulance Service NHS Trust,25/01/2016,Tyres,Fleet Support Services,Ats Euromaster Ltd,245081,49612.46
DOH,London Ambulance Service NHS Trust,13/01/2016,Data Network Rental,Networks,Bt Global Services,245111,30411.82
DOH,London Ambulance Service NHS Trust,15/01/2016,Cleaning Of Premises,Estate Management,Lakethorne Ltd,245169,72306.81
DOH,London Ambulance Service NHS Trust,20/01/2016,Private Ambulance Hire,Director Of Ops,X9 Services,245239,47561.72
DOH,London Ambulance Service NHS Trust,13/01/2016,Private Ambulance Hire,Director Of Ops,X9 Services,245241,46458.97
DOH,London Ambulance Service NHS Trust,13/01/2016,Private Ambulance Hire,Director Of Ops,Srcl Ltd,245251,26619.46
DOH,London Ambulance Service NHS Trust,20/01/2016,Private Ambulance Hire,Director Of Ops,Srcl Ltd,245252,31756.73
DOH,London Ambulance Service NHS Trust,25/01/2016,Private Ambulance Hire,Director Of Ops,Srcl Ltd,245412,37676.98
DOH,London Ambulance Service NHS Trust,25/01/2016,Private Ambulance Hire,Director Of Ops,Srcl Ltd,245413,31125.42
DOH,London Ambulance Service NHS Trust,13/01/2016,Cycle Loan/Purchase Scheme,Balance Sheet,Wheelies Direct Cycle Solutions Ltd,246298,47342.49
DOH,London Ambulance Service NHS Trust,13/01/2016,Vehicles,Capital,Oughtred And Harrison (Facilities) Ltd,246321,68518.92
DOH,London Ambulance Service NHS Trust,20/01/2016,Vehicles,Capital,Oughtred And Harrison (Facilities) Ltd,246667,68518.92
DOH,London Ambulance Service NHS Trust,25/01/2016,Vehicles,Capital,Oughtred And Harrison (Facilities) Ltd,246668,68518.92
DOH,London Ambulance Service NHS Trust,20/01/2016,Private Ambulance Hire,Director Of Ops,Srcl Ltd,246804,33557.72
DOH,London Ambulance Service NHS Trust,25/01/2016,Private Ambulance Hire,Director Of Ops,Medical Services Ltd,247182,63063.64
DOH,London Ambulance Service NHS Trust,20/01/2016,Private Ambulance Hire,Director Of Ops,Medical Services Ltd,247183,64768.18
DOH,London Ambulance Service NHS Trust,25/01/2016,Private Ambulance Hire,Director Of Ops,St John Ambulance Londonprince,247238,42091.3
DOH,London Ambulance Service NHS Trust,25/01/2016,Cleaning Of Premises,Estate Management,Lakethorne Ltd,247632,60367.25
DOH,London Ambulance Service NHS Trust,26/01/2016,Lease Costs For A&E Vehicles,Deputy Director Of Operations,Shawbrook Bank Ltd,29465,423574.49
DOH,London Ambulance Service NHS Trust,15/01/2016,BP Control Account,Control Accounts,BP Oil,29307,175753.24
DOH,London Ambulance Service NHS Trust,21/01/2016,Child Care Arrangements,Payroll,Computerserve Vouchers,29348,31420.57
DOH,London Ambulance Service NHS Trust,26/01/2016,BOC Control Account,Control Accounts,British Oxygen,29465,115671.01
DOH,London Ambulance Service NHS Trust,15/01/2016,CNST Contributions,Legal Services,NHSLA,29307,142104.6
DOH,London Ambulance Service NHS Trust,15/01/2016,Liability to 3rd Party Scheme,Legal Services,NHSLA,29307,32521.9
DOH,London Ambulance Service NHS Trust,15/01/2016,Property Expenses Scheme,Legal Services,NHSLA,29307,1527.6
DOH,London Ambulance Service NHS Trust,04/01/2016,Ensign Insurance Debtor,Control Accounts,QBE International Insurance T/A Ensign,29104,239265.83
